fUSD/lending_fUSD_20240722
["ID","MTS","AMOUNT","RATE_DAILY","PERIOD"]
[332894887,1721654291035,500.0,0.00025,120]
[332894888,1721654292101,500.0,0.00025,120]
[332894889,1721654292980,500.0,0.00025,120]
[332894890,1721654293841,500.0,0.00025,120]
[332894891,1721654295057,500.0,0.00025,120]
[332894892,1721654296085,500.0,0.00025,120]
[332894893,1721654298679,500.0,0.00025,120]
[332894894,1721654300328,500.0,0.00025,120]
[332894895,1721654302256,500.0,0.00025,120]
[332894896,1721654303136,500.0,0.00025,120]
[332894897,1721654304285,500.0,0.00025,120]
[332894898,1721654305099,500.0,0.00025,120]
[332894899,1721654305998,500.0,0.00025,120]
[332894900,1721654306459,500.0,0.00025,120]
[332894901,1721654306932,500.0,0.00025,120]
[332894902,1721654308700,500.0,0.00025,120]
[332894903,1721654311870,500.0,0.00025,120]
[332894904,1721654312314,500.0,0.00025,120]
[332894905,1721654314037,500.0,0.00025,120]
[332894906,1721654315210,500.0,0.00025,120]
[332894907,1721654333322,500.0,0.00025,120]
[332894908,1721654339109,500.0,0.00025,120]
[332894909,1721654348169,443.42489184,0.00025,120]
[332894910,1721654375048,1715.62649241,0.00025,120]
[332894911,1721654759667,341.06,8.306e-05,2]
[332894912,1721654806414,-1141.674694,0.00010012,2]
[332894913,1721654806440,-300.0,0.00010062,2]
[332894914,1721654806465,-8558.325306,0.00010063,2]
[332894915,1721654807331,-10000.0,0.00010063,2]
[332894916,1721654819710,-416.0,0.00010063,2]
[332894917,1721654829528,-4925.674694,0.00010063,2]
[332894918,1721654829551,-240.9401014,0.00010068,2]
[332894919,1721654829574,-414.01891517,0.00010068,2]
[332894920,1721654829596,-1368.39,0.00010139,2]
[332894921,1721654829618,-51.97628943,0.00010141,2]
[332894954,1721655032765,-3583.0331,0.00010039,2]
[332894955,1721655032775,-116.69371057,0.00010141,2]
[332894956,1721655032785,-300.0,0.00010148,2]
[332894957,1721655032794,-1000.0,0.00010149,2]
[332894958,1721655032804,-10000.0,0.00010149,2]
[332894959,1721655032813,-378.43,0.00010152,2]
[332894960,1721655032823,-200.0,0.00010162,2]
[332894961,1721655032832,-4783.14318943,0.00010164,2]
[332894962,1721655032919,-4029.99681057,0.00010164,2]
[332894963,1721655032929,-250.0,0.00010164,2]
[332894964,1721655032939,-195.82,0.00010176,2]
[332894965,1721655032949,-250.0,0.00010176,2]
[332894966,1721655032958,-1847.41,0.00010309,2]
[332894967,1721655032968,-341.06,0.0001057,2]
[332894968,1721655032977,-167.7,0.0001067,2]
[332894969,1721655032990,-214.5,0.00010707,2]
[332894970,1721655033000,-214.5,0.0001071,2]
[332894971,1721655033010,-214.5,0.00010713,2]
[332894972,1721655033019,-499.99,0.00010713,2]
[332894973,1721655033029,-487.09,0.00010713,2]
[332894974,1721655033039,-214.5,0.00010715,2]
[332894975,1721655033050,-1284.78,0.00010715,2]
[332894976,1721655033060,-214.5,0.00010718,2]
[332894977,1721655033069,-214.5,0.00010721,2]
[332894978,1721655033079,-214.5,0.00010724,2]
[332894979,1721655033089,-214.5,0.00010727,2]
[332894980,1721655033099,-214.5,0.00010729,2]
[332894981,1721655033109,-150.0,0.00010732,2]
[332894982,1721655033119,-214.5,0.00010732,2]
[332894983,1721655033135,-214.5,0.00010735,2]
[332894984,1721655033144,-214.5,0.00010738,2]
[332894985,1721655033156,-5763.231,0.00010738,2]
[332894986,1721655033165,-214.5,0.00010741,2]
[332894987,1721655033175,-214.5,0.00010744,2]
[332894988,1721655033185,-214.5,0.00010746,2]
[332894989,1721655033195,-214.5,0.00010749,2]
[332894990,1721655033206,-214.5,0.00010752,2]
[332894991,1721655033216,-214.5,0.00010755,2]
[332894992,1721655033226,-214.5,0.00010758,2]
[332894993,1721655033236,-214.5,0.0001076,2]
[332894994,1721655033246,-168.66,0.00010855,2]
[332894995,1721655033256,-500.0,0.000109,2]
[332894996,1721655033266,-500.0,0.000109,2]
[332894997,1721655033276,-500.0,0.000109,2]
[332894998,1721655033286,-500.0,0.000109,2]
[332894999,1721655033296,-500.0,0.000109,2]
[332895000,1721655033306,-500.0,0.000109,2]
[332895001,1721655033315,-151.94,0.000109,2]
[332895002,1721655033325,-500.0,0.000109,2]
[332895003,1721655033335,-500.0,0.000109,2]
[332895004,1721655033345,-500.0,0.000109,2]
[332895005,1721655033355,-500.0,0.000109,2]
[332895006,1721655033364,-500.0,0.000109,2]
[332895007,1721655033375,-500.0,0.000109,2]
[332895008,1721655033388,-583.34,0.000109,2]
[332895009,1721655033398,-5599.0,0.00010954,2]
[332895010,1721655033409,-250.0,0.00010959,2]
[332895011,1721655033419,-4763.93889041,0.00011105,2]
[332895012,1721655033429,-5602.28197947,0.00011105,2]
[332895013,1721655033439,-3133.16727361,0.00011105,2]
[332895014,1721655033449,-958.99054241,0.00011105,2]
[332895015,1721655033459,-420.0,0.00011161,2]
[332895016,1721655033468,-22630.61502022,0.00011186,2]
[332895017,1721655033478,-439.52750479,0.00011206,2]
[332895018,1721655033488,-599.94606868,0.00011322,2]
[332895019,1721655033498,-599.94606868,0.00011322,2]
[332895020,1721655033508,-183.85776361,0.00011322,2]
[332895021,1721655033518,-648.70102982,0.00011324,2]
[332895022,1721655033528,-302.42479858,0.00011384,2]
[332895023,1721655033538,-155.0,0.00011384,2]
[332895024,1721655033548,-155.70821702,0.00011384,2]
[332895025,1721655033557,-293.19243531,0.00011384,2]
[332895026,1721655033567,-414.02819189,0.00011384,2]
[332895027,1721655033576,-1000.0,0.00011417,2]
[332895028,1721655033586,-53743.0,0.00011431,2]
[332895029,1721655033595,-317.65,0.00011447,2]
[332895030,1721655033604,-425.43694771,0.00011525,2]
[332895031,1721655033614,-538.656729,0.00011548,2]
[332895032,1721655033623,-535.082376,0.00011548,2]
[332895033,1721655033638,-2811.673735,0.00011548,2]
[332895034,1721655033647,-183.138428,0.00011548,2]
[332895035,1721655033656,-2954.7151,0.0001165,2]
[332895036,1721655033666,-272.2871084,0.00011662,2]
[332895037,1721655033678,-315.914,0.00011665,2]
[332895038,1721655033688,-4495.954,0.00011665,2]
[332895039,1721655033697,-1486.13721,0.0001168,2]
[332895040,1721655033707,-538.656729,0.00011692,2]
[332895041,1721655033716,-535.082376,0.00011692,2]
[332895042,1721655033725,-2811.673735,0.00011692,2]
[332895043,1721655033735,-2450.5478,0.00011693,2]
[332895044,1721655033746,-2500.0,0.00011693,2]
[332895045,1721655033757,-500.0,0.00011706,2]
[332895046,1721655033767,-500.0,0.00011715,2]
[332895047,1721655033776,-500.0,0.00011724,2]
[332895048,1721655033786,-500.0,0.00011733,2]
[332895049,1721655033796,-500.0,0.00011742,2]
[332895050,1721655033805,-13076.7862,0.00011747,2]
[332895051,1721655033815,-1000.0,0.0001175,2]
[332895052,1721655033825,-500.0,0.0001175,2]
[332895053,1721655033835,-500.0,0.00011759,2]
[332895054,1721655033844,-156.0,0.00011763,2]
[332895055,1721655033854,-500.0,0.00011768,2]
[332895056,1721655033864,-500.0,0.00011777,2]
[332895057,1721655033873,-500.0,0.00011786,2]
[332895058,1721655033886,-32451.26393081,0.00011793,2]
[332895059,1721655034097,-627.85298596,0.00011793,2]
[332895060,1721655034153,-1440.43885638,0.00011793,2]
[332895061,1721655034166,-10150.10888819,0.00011793,2]
[332895062,1721655034181,-474.01370317,0.00011793,2]
[332895069,1721655037549,-156.15048929,0.00011525,2]
[332895070,1721655037559,-3130.75033549,0.00011793,2]
[332895071,1721655037569,-500.0,0.00011794,2]
[332895072,1721655037578,-414.56336521,0.00011797,2]
[332895073,1721655037634,-85.43663479,0.00011797,2]
[332895074,1721655037643,-1091.73938539,0.00011799,2]
[332895075,1721655037654,-422.51997878,0.00011799,2]
[332895076,1721655037663,-5000.0,0.000118,2]
[332895077,1721655037673,-330.12464555,0.000118,2]
[332895078,1721655037682,-1000.0,0.000118,2]
[332895079,1721655037692,-225.0,0.000118,2]
[332895080,1721655037701,-171.29269954,0.000118,2]
[332895081,1721655037710,-3567.02454803,0.000118,2]
[332895082,1721655037720,-7500.0,0.000118,2]
[332895083,1721655037729,-1913.05938326,0.000118,2]
[332895084,1721655037739,-180.19668508,0.000118,2]
[332895085,1721655037748,-500.0,0.00011803,2]
[332895086,1721655037758,-500.0,0.00011804,2]
[332895087,1721655037767,-500.0,0.00011805,2]
[332895088,1721655037777,-220.33,0.00011808,2]
[332895089,1721655037786,-500.0,0.00011812,2]
[332895090,1721655037796,-500.0,0.00011821,2]
[332895092,1721655037805,-500.0,0.0001183,2]
[332895094,1721655037814,-535.082376,0.00011837,2]
[332895096,1721655037825,-538.656729,0.00011837,2]
[332895098,1721655037834,-2811.673735,0.00011837,2]
[332895100,1721655037843,-500.0,0.00011838,2]
[332895101,1721655037852,-500.0,0.00011847,2]
[332895103,1721655037862,-6707.00538642,0.0001185,2]
[332895105,1721655037871,-493.01141482,0.0001185,2]
[332895107,1721655037882,-155.0,0.0001185,2]
[332895109,1721655037891,-500.0,0.00011856,2]
[332895111,1721655037901,-500.0,0.00011865,2]
[332895112,1721655037914,-500.0,0.00011874,2]
[332895113,1721655037924,-34126.637411,0.0001188,2]
[332895114,1721655037934,-500.0,0.00011882,2]
[332895115,1721655037945,-200.41286543,0.0001189,2]
[332895116,1721655037954,-500.0,0.00011891,2]
[332895117,1721655037964,-238.7134008,0.00011893,2]
[332895118,1721655037973,-155.0,0.00011896,2]
[332895119,1721655037984,-225.88135815,0.00011896,2]
[332895120,1721655037994,-202.63817161,0.00011896,2]
[332895121,1721655038003,-17934.81781281,0.00011897,2]
[332895122,1721655038015,-2191.94612319,0.00011897,2]
[332895123,1721655038025,-150.0,0.00011899,2]
[332895124,1721655038034,-883.36844987,0.00011899,2]
[332895125,1721655038044,-173.17379423,0.00011899,2]
[332895126,1721655038054,-28275.28180881,0.000119,2]
[332895127,1721655038273,-563.98464457,0.000119,2]
[332895131,1721655039601,-1922.61,0.000119,2]
[332895132,1721655039638,-844.2,0.000119,2]
[332895133,1721655039680,-329.5470295,0.00011525,2]
[332895134,1721655039689,-9.4879705,0.0001185,2]
[332895138,1721655043375,-520.32756792,0.0001185,2]
[332895139,1721655043389,-414.01891517,0.00011896,2]
[332895140,1721655043399,-588.91229991,0.00011899,2]
[332895141,1721655043410,-226218.58799616,0.000119,2]
[332895142,1721655043458,-1729.45958509,0.000119,2]
[332895145,1721655045625,-13537.79283675,0.000119,2]
[332895149,1721655047735,-6777.2,0.000119,2]
[332895150,1721655047746,-3524.1847412,0.000119,2]
[332895151,1721655047758,-678.68,0.000119,2]
[332895152,1721655127385,-20000.0,0.00013,30]
[332895157,1721655334451,365.81,8.848e-05,2]
[332895158,1721655390465,150.5,0.00017798,120]
[332895159,1721655390908,150.5,0.00017788,120]
[332895160,1721655391366,150.5,0.00017778,120]
[332895161,1721655391820,202.99,0.00017798,120]
[332895162,1721655856112,347.51,8.248e-05,2]
[332895163,1721655893032,174544.51925943,8.248e-05,2]
[332895164,1721655903132,17337.30760131,8.248e-05,2]
[332895165,1721655956017,601.94913587,0.00024,60]
[332895184,1721656232109,-643.35469944,9.985e-05,2]
[332895185,1721656232121,-76.05530056,9.985e-05,2]
[332895186,1721656232130,-302.87483183,9.997e-05,2]
[332895187,1721656232140,-1010.0,0.0001,2]
[332895188,1721656232150,-250.0,0.00010023,2]
[332895189,1721656232159,-6577.84524578,0.00010053,2]
[332895190,1721656232195,-1092.10389261,0.00010053,2]
[332895191,1721656232207,-16230.05086161,0.00010053,2]
[332895192,1721656232217,-10000.0,0.00010066,2]
[332895193,1721656232230,-250.0,0.00010145,2]
[332895194,1721656232239,-200.0,0.00010185,2]
[332895195,1721656232249,-347.51,0.00010511,2]
[332895196,1721656232258,-150.4,0.00010666,2]
[332895197,1721656232269,-150.4,0.0001067,2]
[332895198,1721656232280,-3494.16,0.0001067,2]
[332895199,1721656232289,-150.4,0.00010674,2]
[332895200,1721656232298,-499.99,0.00010674,2]
[332895201,1721656232307,-150.4,0.00010677,2]
[332895202,1721656232318,-150.4,0.00010681,2]
[332895203,1721656232328,-150.4,0.00010684,2]
[332895204,1721656232337,-150.4,0.00010688,2]
[332895205,1721656232347,-150.4,0.00010691,2]
[332895206,1721656232359,-150.4,0.00010695,2]
[332895207,1721656232369,-150.4,0.00010699,2]
[332895208,1721656232378,-150.4,0.00010702,2]
[332895209,1721656232388,-150.4,0.00010706,2]
[332895210,1721656232397,-150.4,0.00010709,2]
[332895211,1721656232407,-150.4,0.00010713,2]
[332895212,1721656232417,-150.4,0.00010716,2]
[332895213,1721656232426,-150.4,0.0001072,2]
[332895214,1721656232436,-150.0,0.0001072,2]
[332895215,1721656232446,-242.90606631,0.00010725,2]
[332895216,1721656232456,-1000.0,0.00010877,2]
[332895217,1721656232465,-168.65,0.00010913,2]
[332895218,1721656232478,-781.218,0.00010913,2]
[332895219,1721656232488,-155.61384076,0.00011105,2]
[332895220,1721656232498,-155.0,0.00011105,2]
[332895221,1721656232507,-519.51657514,0.00011105,2]
[332895222,1721656232517,-1266.87800095,0.00011105,2]
[332895223,1721656232813,-300.16515746,0.00011105,2]
[332895224,1721656232823,-254.76158442,0.00011105,2]
[332895225,1721656232832,-1296.25653306,0.00011105,2]
[332895226,1721656232842,-155.0,0.00011105,2]
[332895227,1721656232851,-191.68647548,0.00011105,2]
[332895228,1721656232860,-414.01891517,0.00011105,2]
[332895229,1721656232869,-947.11163989,0.00011105,2]
[332895230,1721656232879,-9258.81548687,0.00011105,2]
[332895231,1721656232888,-24764.73626769,0.00011186,2]
[332895232,1721656232897,-155.0,0.00011384,2]
[332895233,1721656232907,-431.9273718,0.00011525,2]
[332895234,1721656232916,-183.084529,0.00011548,2]
[332895235,1721656232926,-9236.68269313,0.00011646,2]
[332895236,1721656232935,-38559.57375723,0.00011647,2]
[332895237,1721656232961,-667.36237526,0.00011647,2]
[332895238,1721656232974,-49948.86616751,0.00011647,2]
[332895239,1721656232986,-500.0,0.00011693,2]
[332895240,1721656232995,-280.43554768,0.00011724,2]
[332895241,1721656233004,-1238.44768,0.0001178,2]
[332895242,1721656233014,-2500.0,0.000118,2]
[332895243,1721656233023,-80314.2506048,0.000118,2]
[332895244,1721656233039,-508.47198714,0.000118,2]
[332895245,1721656237816,-279.36,0.000118,2]
[332895246,1721656237852,-12214.23752723,0.000118,2]
[332895247,1721656237864,-270.57275784,0.000118,2]
[332895248,1721656237879,-67468.10009797,0.000118,2]
[332895249,1721656238107,-10208.26326482,0.000118,2]
[332895250,1721656238119,-360.8280102,0.000118,2]
[332895252,1721656239952,-6790.10000001,0.000118,2]
[332895253,1721656239963,-257.95610873,0.000118,2]
[332895255,1721656241883,-6483.755,0.000118,2]
[332895326,1721656242786,-32027.24676377,0.000118,2]
[332895327,1721656242797,-158.78327468,0.000118,2]
[332895328,1721656242807,-237.49,0.00011808,2]
[332895329,1721656242816,-15463.75564416,0.0001185,2]
[332895330,1721656242826,-588.91229991,0.00011899,2]
[332895331,1721656242835,-626023.80781737,0.000119,2]
[332895332,1721656242847,-6746.73999999,0.000119,2]
[332895334,1721656245728,-731.34227642,0.0001185,2]
[332895337,1721656248693,-2006.36157017,0.0001185,2]
[332895338,1721656249078,-13585.1608,0.0001185,2]
[332895339,1721656249091,-2697.78102401,0.0001185,2]
[332895340,1721656530645,350.14,8.848e-05,2]
[332895341,1721656602566,2294.75432452,8.848e-05,2]
[332895342,1721656730706,-245.79,0.00010554,2]
[332895343,1721656730731,-371.74643697,0.00010725,2]
[332895344,1721656730753,-1047.6287417,0.00010725,2]
[332895345,1721656730774,-654.33643416,0.00010725,2]
[332895346,1721656730795,-493.01141482,0.00010725,2]
[332895347,1721656730817,-495.114038,0.00010746,2]
[332895348,1721656730838,-438.28,0.00010746,2]
[332895349,1721656730860,-300.0,0.00010767,2]
[332895350,1721656730883,-23900.0,0.00010768,2]
[332895351,1721656730905,-262.64,0.00010822,2]
[332895352,1721656730926,-722.04,0.00010858,2]
[332895353,1721656730947,-250.0,0.00010912,2]
[332895354,1721656730972,-168.76,0.00010933,2]
[332895355,1721656730994,-200.0,0.00010947,2]
[332895356,1721656731015,-1000.0,0.00011011,2]
[332895357,1721656731036,-15247.72258853,0.00011105,2]
[332895358,1721656731058,-350.14,0.00011112,2]
[332895359,1721656731079,-298.22289099,0.00011186,2]
[332895360,1721656731099,-342.13318843,0.00011206,2]
[332895361,1721656731120,-349.14572823,0.00011206,2]
[332895362,1721656731140,-171.36,0.00011432,2]
[332895363,1721656731160,-2622.9738,0.00011547,2]
[332895364,1721656731181,-73324.4042,0.00011547,2]
[332895365,1721656731201,-224.7396,0.00011547,2]
[332895366,1721656731227,-1801.86,0.00011547,2]
[332895367,1721656731249,-5587.903636,0.00011548,2]
[332895368,1721656731273,-850.575793,0.00011548,2]
[332895369,1721656731294,-178.54830156,0.0001158,2]
[332895370,1721656731314,-8334.6724,0.0001158,2]
[332895371,1721656731334,-32353.06,0.0001158,2]
[332895372,1721656731355,-280.43554769,0.00011581,2]
[332895373,1721656731378,-150.0,0.00011631,2]
[332895374,1721656731399,-270.54,0.00011631,2]
[332895375,1721656731422,-499.99,0.00011631,2]
[332895376,1721656731445,-999.99,0.00011631,2]
[332895377,1721656731468,-310.32,0.00011631,2]
[332895378,1721656731490,-150.99,0.00011631,2]
[332895379,1721656731511,-245000.0,0.0001168,2]
[332895380,1721656731531,-796.55,0.0001168,2]
[332895381,1721656731552,-5587.903636,0.00011692,2]
[332895382,1721656731574,-850.575793,0.00011692,2]
[332895383,1721656731595,-500.0,0.000117,2]
[332895384,1721656731619,-150.0,0.00011715,2]
[332895385,1721656731642,-150.0,0.00011734,2]
[332895386,1721656731665,-150.0,0.0001175,2]
[332895387,1721656731686,-1032.03973,0.0001178,2]
[332895388,1721656731708,-458.0,0.00011781,2]
[332895389,1721656731735,-150.0,0.00011785,2]
[332895390,1721656731758,-150.99,0.00011785,2]
[332895391,1721656731779,-558.1346,0.000118,2]
[332895392,1721656731800,-1000.0,0.000118,2]
[332895393,1721656731822,-420.0,0.00011834,2]
[332895394,1721656731843,-5587.903636,0.00011837,2]
[332895395,1721656731864,-850.575793,0.00011837,2]
[332895396,1721656731888,-150.0,0.00011885,2]
[332895397,1721656731912,-150.0,0.00011886,2]
[332895398,1721656731936,-150.0,0.00011895,2]
[332895399,1721656731957,-82480.03140488,0.00011896,2]
[332895400,1721656731980,-1000.0,0.00011899,2]
[332895401,1721656732000,-294.45614996,0.00011899,2]
[332895402,1721656732020,-506.0,0.000119,2]
[332895403,1721656732043,-224627.76451708,0.000119,2]
[332895405,1721657068238,335.74,8.848e-05,2]
[332895452,1721657431968,-1888.623241,0.00010461,2]
[332895453,1721657431978,-250.0,0.00010485,2]
[332895454,1721657431988,-10000.0,0.00010485,2]
[332895455,1721657431998,-800.0,0.00010501,2]
[332895456,1721657432007,-1245.75,0.00010501,2]
[332895457,1721657432017,-333.66,0.00010514,2]
[332895458,1721657432027,-158.07088294,0.00010725,2]
[332895459,1721657432037,-946.40513726,0.00010725,2]
[332895460,1721657432047,-379.41942366,0.00010725,2]
[332895461,1721657432057,-4200.63820514,0.00010725,2]
[332895462,1721657432087,-1076.45370626,0.00010725,2]
[332895463,1721657432096,-192.87425546,0.00010725,2]
[332895464,1721657432106,-240.83474057,0.00010725,2]
[332895465,1721657432118,-155.13638056,0.00010725,2]
[332895466,1721657432127,-175.66325036,0.00010725,2]
[332895467,1721657432137,-1255.6296301,0.00010725,2]
[332895468,1721657432612,-155.0,0.00010725,2]
[332895469,1721657432642,-293.19243531,0.00010725,2]
[332895470,1721657432653,-412.45599061,0.00010725,2]
[332895471,1721657432665,-8556.58995088,0.00010725,2]
[332895472,1721657432674,-23900.0,0.00010726,2]
[332895473,1721657432683,-500.0,0.00010765,2]
[332895474,1721657432694,-250.0,0.000108,2]
[332895475,1721657432704,-200.0,0.00010888,2]
[332895476,1721657432714,-600.0,0.000109,3]
[332895477,1721657432723,-1200.0,0.00011,4]
[332895478,1721657432734,-1900.0,0.000111,4]
[332895479,1721657432744,-335.74,0.00011111,2]
[332895480,1721657432753,-499.99,0.00011111,2]
[332895481,1721657432762,-1000.0,0.00011185,2]
[332895482,1721657432772,-22630.61502022,0.00011186,2]
[332895483,1721657432781,-1825.82463967,0.000112,4]
[332895484,1721657432801,-674.17536033,0.000112,4]
[332895485,1721657432810,-1914.84614909,0.000113,4]
[332895486,1721657432822,-913.25393759,0.000113,4]
[332895487,1721657432849,-371.89991332,0.000113,4]
[332895488,1721657432859,-600.0,0.000114,4]
[332895489,1721657432870,-600.0,0.000115,4]
[332895490,1721657432879,-1134.0,0.00011547,2]
[332895491,1721657432888,-57276.6127,0.0001158,2]
[332895492,1721657432898,-780.2523,0.0001158,2]
[332895493,1721657432907,-600.0,0.000116,4]
[332895494,1721657432918,-1533.56036659,0.00011662,2]
[332895495,1721657432928,-600.0,0.000117,4]
[332895496,1721657432938,-606.84842258,0.000118,2]
[332895497,1721657432948,-606.84842258,0.000118,2]
[332895498,1721657432958,-175.32345233,0.000118,2]
[332895499,1721657432968,-167.66739738,0.000118,2]
[332895500,1721657432978,-1772.4321,0.000118,2]
[332895501,1721657432987,-205.20981383,0.000118,2]
[332895502,1721657432997,-1000.0,0.000118,4]
[332895503,1721657433007,-1030.0,0.000118,2]
[332895504,1721657433017,-614.51359985,0.000118,2]
[332895505,1721657433026,-800.0,0.00011814,2]
[332895506,1721657433036,-294.45614995,0.00011899,2]
[332895507,1721657433046,-311960.7328127,0.000119,2]
[332895508,1721657433828,-120067.0694764,0.000119,2]
[332895514,1721657438053,-236.03729267,0.00011161,2]
[332895515,1721657438063,-363.13630733,0.000119,2]
[332895516,1721657438073,-1068.89864221,0.000119,2]
[332895517,1721657438084,-333.49437701,0.000119,2]
[332895518,1721657438095,-13180.15200001,0.000119,2]
[332895519,1721657438256,-312911.30904223,0.000119,2]
[332895520,1721657438267,-2690.636,0.000119,2]
[332895521,1721657438279,-681.3278,0.000119,2]
[332895707,1721657440009,-47339.3024916,0.000119,2]
[332895713,1721657440058,-57144.04511197,0.000119,2]
[332895741,1721657440327,-4697.7,0.000119,2]
[332895743,1721657440339,-2623.32953715,0.000119,2]
[332896021,1721657443039,-356.64126508,0.00011897,2]
[332896051,1721657443335,-18893.85140033,0.00011897,2]
[332896053,1721657443345,-3092.42330459,0.000119,2]
[332896055,1721657443356,-10877.31968114,0.000119,2]
[332896428,1721657446996,-4238.724846,0.000119,2]
[332896509,1721657447780,-803.98244877,0.000119,2]
[332896518,1721657447863,-1616.21419839,0.000119,2]
[332896521,1721657447876,-619.36986052,0.000119,2]
[332897765,1721658153164,334.86,8.869e-05,2]
[332897767,1721658208144,1421.12643798,8.869e-05,2]
[332897768,1721658308155,947.41762532,8.869e-05,2]
[332897803,1721658390234,789.51468777,8.869e-05,2]
[332897804,1721658405692,1836.68998723,0.00025,120]
[332897875,1721658632162,-250.0,0.00010317,2]
[332897876,1721658632171,-480.0,0.00010706,2]
[332897877,1721658632181,-279.9432341,0.00010718,2]
[332897878,1721658632204,-20.0567659,0.00010718,2]
[332897879,1721658632214,-10000.0,0.00010719,2]
[332897880,1721658632223,-225.88135815,0.00010725,2]
[332897881,1721658632233,-155.0,0.00010725,2]
[332897882,1721658632243,-210.40265388,0.00010725,2]
[332897883,1721658632252,-216.93020437,0.00010725,2]
[332897884,1721658632262,-235.61535094,0.00010725,2]
[332897885,1721658632271,-155.0,0.00010725,2]
[332897886,1721658632280,-356.97970176,0.00010725,2]
[332897887,1721658632289,-23900.0,0.00010735,2]
[332897888,1721658632299,-250.0,0.00010735,2]
[332897889,1721658632308,-200.0,0.00010737,2]
[332897890,1721658632317,-150.0,0.00010749,2]
[332897891,1721658632327,-3399.20876057,0.0001075,2]
[332897892,1721658632341,-169.29072955,0.0001075,2]
[332897893,1721658632351,-163.46889947,0.0001075,2]
[332897894,1721658632360,-1847.45336442,0.0001075,2]
[332897895,1721658632371,-168.53982402,0.0001075,2]
[332897896,1721658632380,-168.76,0.00010757,2]
[332897897,1721658632389,-520.0,0.0001076,2]
[332897898,1721658632398,-303.63,0.00010859,2]
[332897899,1721658632407,-499.99,0.00010859,2]
[332897900,1721658632416,-1632.38014955,0.00011105,2]
[332897901,1721658632425,-1273.92324229,0.00011105,2]
[332897902,1721658632435,-155.0,0.00011105,2]
[332897903,1721658632444,-939.45655838,0.00011105,2]
[332897904,1721658632454,-11793.635292,0.00011105,2]
[332897905,1721658632463,-7971.39714475,0.00011105,2]
[332897906,1721658632498,-3489.12249534,0.00011105,2]
[332897907,1721658632521,-1394.36119786,0.00011105,2]
[332897908,1721658632552,-1720.25209757,0.00011105,2]
[332897909,1721658632562,-7776.46179314,0.00011105,2]
[332897910,1721658632582,-1042.5,0.00011105,2]
[332897911,1721658632666,-439.85369373,0.00011105,2]
[332897912,1721658632675,-539.18566579,0.00011105,2]
[332897913,1721658632684,-334.86,0.00011133,2]
[332897914,1721658632694,-1235.10565037,0.00011186,2]
[332897915,1721658632704,-2383.29549388,0.00011321,2]
[332897916,1721658632713,-286.7582807,0.00011324,2]
[332897917,1721658632722,-158.14885175,0.00011324,2]
[332897919,1721658632731,-398.86549937,0.00011384,2]
[332897921,1721658632740,-425.43694771,0.00011384,2]
[332897923,1721658632750,-425.43694771,0.00011384,2]
[332897924,1721658632760,-250.64382248,0.00011384,2]
[332897926,1721658632769,-329.5470295,0.00011525,2]
[332897928,1721658632778,-169.0,0.00011538,2]
[332897930,1721658632787,-179.552243,0.00011548,2]
[332897932,1721658632797,-178.360792,0.00011548,2]
[332897934,1721658632807,-1683.432663,0.00011548,2]
[332897936,1721658632816,-1882.560481,0.00011548,2]
[332897938,1721658632826,-1990.543366,0.00011548,2]
[332897939,1721658632839,-223.868136,0.00011548,2]
[332897941,1721658632851,-174.329746,0.00011548,2]